bitfinex-derivatives/quotes_SOLF0:USTF0_20250310
["timestamp","ask_amount","ask_price","bid_price","bid_amount"]
[1741578710685,7.8766,126.97,126.95,8.97558179]
[1741578711183,7.8766,126.97,126.94,7.8782]
[1741578711781,7.93000803,126.97,126.94,7.93337525]
[1741578711985,7.93000803,126.97,126.95,7.8777]
[1741578713083,0.05340803,126.97,126.96,7.8771]
[1741578714185,0.05340803,126.97,126.95,16.85298179]
[1741578714486,0.05340803,126.97,126.95,8.97558179]
[1741578714680,7.92990803,126.97,126.95,8.97558179]
[1741578715082,7.92990803,126.97,126.94,7.93327525]
[1741578715083,0.05340803,126.97,126.94,0.05517525]
[1741578715282,7.8775,126.96,126.94,0.05517525]
[1741578716687,9.02898982,126.97,126.94,0.05517525]
[1741578716980,7.8774,126.96,126.94,0.05517525]
[1741578718086,7.8774,126.96,126.94,7.93337525]
[1741578718281,9.02898982,126.97,126.94,0.05517525]
[1741578718489,7.8774,126.96,126.94,0.05517525]
[1741578718781,9.02898982,126.97,126.94,0.05517525]
[1741578718986,16.90578982,126.97,126.94,0.05517525]
[1741578719286,16.90578982,126.97,126.94,7.93337525]
[1741578719983,9.02898982,126.97,126.94,0.05517525]
[1741578720287,7.8771,126.96,126.94,0.05517525]
[1741578721481,9.02898982,126.97,126.94,0.05517525]
[1741578721787,7.8777,126.95,126.94,0.05517525]
[1741578722080,16.90578982,126.97,126.94,0.05517525]
[1741578722285,7.93020803,126.97,126.94,0.05517525]
[1741578722789,7.93020803,126.97,126.94,7.93317525]
[1741578723284,7.93020803,126.97,126.94,0.05517525]
[1741578723484,7.93020803,126.97,126.95,7.8776]
[1741578723991,9.02898982,126.97,126.94,7.93317525]
[1741578724589,16.90578982,126.97,126.94,7.93317525]
[1741578725187,9.02898982,126.97,126.94,7.93317525]
[1741578725491,9.02898982,126.97,126.95,7.8777]
[1741578725685,9.02898982,126.97,126.94,0.05517525]
[1741578725686,16.90578982,126.97,126.94,0.05517525]
[1741578725885,8.97558179,126.95,126.94,0.05517525]
[1741578726188,8.97558179,126.95,126.87,36.84852501]
[1741578726189,7.8811,126.9,126.87,36.84852501]
[1741578726390,16.85668179,126.9,126.88,51.79576766]
[1741578726986,8.97558179,126.92,126.88,51.79576766]
[1741578727194,8.97558179,126.94,126.9,8.97558179]
[1741578728385,0.05451785,126.93,126.91,0.04950746]
[1741578730089,7.93381785,126.93,126.91,0.04950746]
[1741578730294,8.97558179,126.92,126.91,0.04950746]
[1741578730981,16.85518179,126.92,126.91,0.04950746]
[1741578734190,12.91558179,126.92,126.8,8.97558179]
[1741578734394,1.37169886,126.97,126.8,8.97558179]
[1741578734395,8.97558179,126.84,126.8,2.1436]
[1741578734594,8.97558179,126.84,126.79,36.73612501]
[1741578735297,0.05291796,126.83,126.8,0.05039262]
[1741578736395,7.93831796,126.83,126.8,0.05039262]
[1741578736697,0.05291796,126.83,126.8,0.05039262]
[1741578737089,0.05291796,126.83,126.81,7.8863]
[1741578737294,0.05291796,126.83,126.8,0.05039262]
[1741578737488,0.05291796,126.83,126.8,29.63039262]
[1741578737694,0.05291796,126.83,126.82,7.8858]
[1741578738296,0.05291796,126.83,126.8,29.63039262]
[1741578738498,0.05291796,126.83,126.81,7.8862]
[1741578738998,0.05291796,126.83,126.82,7.8858]
[1741578740196,259.92,126.89,126.85,7.8839]
[1741578740497,29.6,126.92,126.84,14.10507173]
[1741578740799,14.10507173,126.91,126.85,9.848]
[1741578741389,0.05526031,126.89,126.87,0.0555968]
[1741578741995,7.93676031,126.89,126.87,0.0555968]
[1741578742291,14.16033204,126.89,126.78,43.70507173]
[1741578742498,7.8853,126.83,126.78,43.5679]
[1741578742695,14.10507173,126.84,126.78,6.0799]
[1741578743094,29.6,126.85,126.78,6.0799]
[1741578743400,0.05318871,126.83,126.8,0.05707595]
[1741578745304,0.05318871,126.83,126.8,7.94407595]
[1741578745696,0.05318871,126.83,126.8,0.05707595]
[1741578745897,7.93878871,126.83,126.8,0.05707595]
[1741578746499,7.93878871,126.83,126.8,7.94397595]
[1741578748093,7.8863,126.82,126.8,0.05707595]
[1741578748998,7.93868871,126.83,126.8,0.05707595]
[1741578749301,7.93868871,126.83,126.8,7.94397595]
[1741578749504,7.93868871,126.83,126.8,0.05707595]
[1741578750098,7.8861,126.82,126.8,0.05707595]
[1741578750497,0.05318871,126.83,126.8,0.05707595]
[1741578750897,7.8864,126.81,126.8,0.05707595]
[1741578753904,43.70507173,126.82,126.73,4.0685]
[1741578754105,7.8886,126.78,126.73,4.0685]
[1741578754307,43.70507173,126.82,126.73,4.0685]
[1741578754509,7.8873,126.8,126.74,14.10507173]
[1741578754807,7.8873,126.8,126.75,29.6]
[1741578755007,7.8873,126.8,126.76,7.889]
[1741578755210,0.05769482,126.79,126.76,7.94481519]
[1741578756509,7.94599482,126.79,126.76,0.05581519]
[1741578756711,0.05769482,126.79,126.76,0.05581519]
[1741578756907,43.76276655,126.79,126.76,0.05581519]
[1741578757308,7.8889,126.77,126.76,0.05581519]
[1741578757807,7.8886,126.78,126.76,0.05581519]
[1741578758210,29.65769482,126.79,126.76,0.05581519]
[1741578758514,7.8889,126.77,126.76,0.05581519]
[1741578759311,7.8906,126.75,126.7,2.0258]
[1741578759511,14.10507173,126.77,126.7,2.0258]
[1741578759512,29.6,126.76,126.7,2.0258]
[1741578759712,14.10507173,126.75,126.67,4.0853]
[1741578759920,29.6,126.76,126.68,14.10507173]
[1741578760314,29.6,126.76,126.71,7.892]
[1741578760512,0.05433365,126.73,126.71,7.94865976]
[1741578760821,0.05433365,126.73,126.72,7.892]
[1741578762619,0.05433365,126.73,126.71,29.65665976]
[1741578763124,0.05433365,126.73,126.71,0.05665976]
[1741578763817,0.05433365,126.73,126.71,7.94875976]
[1741578764217,0.05433365,126.73,126.71,0.05665976]
[1741578765422,0.05433365,126.73,126.71,7.94925976]
[1741578765624,0.05433365,126.73,126.71,0.05665976]
[1741578766522,0.05433365,126.73,126.71,7.94885976]
[1741578766722,0.05433365,126.73,126.71,0.05665976]
[1741578768321,7.892,126.72,126.71,0.05665976]
[1741578769027,7.94603365,126.73,126.71,0.05665976]
[1741578769728,0.05433365,126.73,126.71,0.05665976]
[1741578769927,7.892,126.72,126.71,0.05665976]
[1741578771723,7.8936,126.7,126.67,11.9802]
[1741578771927,7.8936,126.7,126.67,7.8949]
[1741578772131,1.9893,126.73,126.66,29.62]
[1741578772330,14.10507173,126.72,126.66,29.62]
[1741578772933,0.05289823,126.7,126.68,7.94699221]
[1741578774036,0.05289823,126.7,126.69,7.8939]
[1741578775634,1.9872,126.76,126.73,7.8909]
[1741578775837,303.92507173,126.79,126.72,29.62]
[1741578776134,7.8892,126.77,126.74,7.8907]
[1741578776936,7.8896,126.76,126.74,0.05971586]
[1741578777236,14.16197109,126.77,126.74,0.05971586]
[1741578777827,7.8898,126.76,126.74,0.05971586]
[1741578780937,7.8901,126.75,126.74,0.05971586]
[1741578781737,0.05689936,126.77,126.74,0.05971586]
[1741578782139,0.05689936,126.77,126.75,7.8898]
[1741578783335,0.05689936,126.77,126.74,0.05971586]
[1741578783535,7.94589936,126.77,126.74,7.95021586]
[1741578783736,0.05689936,126.77,126.74,0.05971586]
[1741578784136,7.8898,126.76,126.74,0.05971586]
[1741578784533,14.16197109,126.77,126.74,0.05971586]
[1741578784842,14.10507173,126.75,126.69,2.0221]
[1741578785144,7.8917,126.73,126.7,7.8929]
[1741578785343,31.5931,126.76,126.69,31.6421]
[1741578785744,7.8914,126.73,126.69,31.6421]
[1741578785939,7.8914,126.73,126.71,0.05038107]
[1741578786345,0.05677291,126.74,126.71,0.05038107]
[1741578787037,7.8918,126.73,126.71,0.05038107]
[1741578787846,0.05677291,126.74,126.71,0.05038107]
[1741578788046,7.892,126.72,126.71,0.05038107]
[1741578789547,7.8935,126.7,126.67,29.62]
[1741578789747,7.8935,126.7,126.67,37.5148]
[1741578790545,7.9470421,126.7,126.67,37.5148]
[1741578790842,7.9470421,126.7,126.67,7.8948]
[1741578791049,0.0535421,126.7,126.66,29.62]
[1741578792146,7.9469421,126.7,126.67,7.8948]
[1741578793047,0.0535421,126.7,126.67,7.8948]
[1741578793846,7.9471421,126.7,126.67,7.8948]
[1741578794146,7.8942,126.69,126.66,7.8955]
[1741578794348,7.8942,126.69,126.66,37.5155]
[1741578794740,7.9473421,126.7,126.67,7.8948]
[1741578795141,0.0535421,126.7,126.67,7.8948]
[1741578795447,7.9471421,126.7,126.67,7.8948]
[1741578796151,7.8939,126.69,126.66,37.5154]
[1741578796349,0.0535421,126.7,126.66,29.62]
[1741578797852,7.9472421,126.7,126.67,7.8947]
[1741578798044,0.0535421,126.7,126.66,29.62]
[1741578798445,7.9471421,126.7,126.66,29.62]
[1741578798646,0.0535421,126.7,126.66,29.62]
[1741578799745,6.0081,126.76,126.66,43.72507173]
[1741578800050,1.9731,126.76,126.68,14.10507173]
[1741578800251,1.9731,126.76,126.69,31.5723]
[1741578800449,7.8904,126.75,126.72,7.8917]
[1741578801052,7.94846891,126.75,126.72,7.9443489]
[1741578802253,0.05806891,126.75,126.72,0.0526489]
[1741578802456,7.8914,126.74,126.72,0.0526489]
[1741578803156,0.05806891,126.75,126.72,0.0526489]
[1741578804454,0.05806891,126.75,126.72,7.9443489]
[1741578804650,0.05806891,126.75,126.72,37.5643489]
[1741578805056,7.94836891,126.75,126.72,37.5643489]
[1741578805548,0.05806891,126.75,126.73,7.8912]
[1741578806251,7.94826891,126.75,126.73,7.8912]
[1741578806449,0.05806891,126.75,126.73,7.8912]
[1741578806756,0.05806891,126.75,126.74,7.8908]
[1741578809453,7.8879,126.79,126.72,43.77772063]
[1741578809759,14.10507173,126.81,126.77,7.8888]
[1741578809950,14.10507173,126.81,126.75,29.6]
[1741578810547,7.8887,126.78,126.75,37.4898]
[1741578810747,7.8887,126.78,126.77,0.05061675]
[1741578813358,0.05511015,126.79,126.77,0.05061675]
[1741578813762,0.05511015,126.79,126.77,7.93901675]
[1741578814162,0.05511015,126.79,126.77,0.05061675]
[1741578814561,0.05511015,126.79,126.77,7.93921675]
[1741578814863,0.05511015,126.79,126.77,0.05061675]
[1741578815863,0.05511015,126.79,126.77,7.93951675]
[1741578816560,0.05511015,126.79,126.78,7.8883]
[1741578816958,0.05511015,126.79,126.78,37.4883]
[1741578817263,7.8865,126.81,126.78,37.4879]
[1741578817765,7.8862,126.82,126.79,7.8876]
[1741578818257,7.8867,126.81,126.79,0.05669061]
[1741578820263,16.91555445,126.8,126.79,0.05669061]
[1741578821860,0.06037958,126.82,126.79,7.94429061]
[1741578821861,16.97513403,126.82,126.79,7.94429061]
[1741578822962,9.08893403,126.82,126.79,0.05669061]
[1741578823163,0.06037958,126.82,126.79,0.05669061]
[1741578823557,0.06037958,126.82,126.81,7.8864]
[1741578823964,0.06037958,126.82,126.81,37.4864]
[1741578824159,9.02855445,126.85,126.81,29.6]
[1741578824360,16.21586772,126.87,126.81,29.6]
[1741578824558,16.21586772,126.87,126.81,31.703]
[1741578825267,7.8837,126.86,126.83,7.8848]
[1741578825473,16.21586772,126.87,126.83,0.05986197]
[1741578825474,0.06038649,126.85,126.83,0.05986197]
[1741578825965,7.94428649,126.85,126.83,0.05986197]
[1741578826166,0.06038649,126.85,126.83,0.05986197]
[1741578826667,7.8845,126.84,126.83,0.05986197]
[1741578829468,7.8845,126.84,126.83,6.197e-05]
[1741578836380,0.06038649,126.85,126.83,7.88506197]
[1741578843394,0.06038649,126.85,126.84,7.8845]
[1741578848491,262.2466,126.91,126.84,9.02121393]
[1741578848693,9.02121393,126.9,126.86,7.883]
[1741578849095,7.8818,126.89,126.86,7.883]
[1741578849393,9.02121393,126.9,126.85,29.56]
[1741578849789,7.8824,126.88,126.86,0.05694746]
[1741578850191,7.93213011,126.89,126.86,7.94014746]
[1741578850498,7.93213011,126.89,126.86,0.05694746]
[1741578850893,7.93213011,126.89,126.86,7.93994746]
[1741578851093,7.8821,126.88,126.86,7.93994746]
[1741578851797,7.93213011,126.89,126.86,7.93994746]
[1741578852795,7.8822,126.88,126.86,7.93994746]
[1741578853902,7.8822,126.88,126.86,0.05694746]
[1741578854700,7.93213011,126.89,126.86,7.93974746]
[1741578855196,0.05043011,126.89,126.86,7.93974746]
[1741578855902,7.93203011,126.89,126.86,7.93974746]
[1741578856492,0.05043011,126.89,126.86,0.05694746]
[1741578856797,0.05043011,126.89,126.88,9.02121393]
[1741578856999,16.90031393,126.93,126.9,7.8805]
[1741578857301,9.02121393,126.93,126.88,29.56]
[1741578857702,9.02121393,126.91,126.88,29.56]
[1741578858101,9.08123411,126.91,126.88,29.60971159]
[1741578858490,7.8809,126.9,126.88,29.60971159]
[1741578858997,9.08123411,126.91,126.88,29.60971159]
[1741578859204,0.06002018,126.91,126.88,29.60971159]
[1741578860004,0.06002018,126.91,126.89,7.8811]
[1741578860904,0.06002018,126.91,126.88,29.60971159]
[1741578861799,9.08123411,126.91,126.88,0.04971159]
[1741578862005,9.02121393,126.89,126.88,0.04971159]
[1741578862708,9.08123411,126.91,126.88,0.04971159]
[1741578862894,0.06002018,126.91,126.89,7.8809]
[1741578863498,7.94052018,126.91,126.88,16.95272552]
[1741578864101,0.06002018,126.91,126.88,9.07092552]
[1741578864907,0.06002018,126.91,126.89,29.54]
[1741578865908,0.06002018,126.91,126.89,33.6871]
[1741578866104,0.06002018,126.91,126.9,9.02121393]
[1741578866505,0.06002018,126.91,126.9,16.90201393]
[1741578866701,9.02121393,126.96,126.9,9.02121393]
[1741578866906,16.89861393,126.96,126.92,7.879]
[1741578867300,9.02121393,126.96,126.92,7.879]
[1741578867500,7.8782,126.95,126.92,7.879]
[1741578867710,9.02121393,126.96,126.91,7.8799]
[1741578867912,0.05956505,126.95,126.92,0.05910396]
[1741578868112,7.93756505,126.95,126.92,0.05910396]
[1741578868514,0.05956505,126.95,126.92,0.05910396]
[1741578868711,7.8786,126.94,126.92,0.05910396]
[1741578869610,0.05956505,126.95,126.92,0.05910396]
[1741578869811,0.05956505,126.95,126.93,7.8789]
[1741578870013,0.05956505,126.95,126.92,38.62031789]
[1741578870315,7.8783,126.94,126.92,29.59910396]
[1741578870517,0.05956505,126.95,126.92,29.59910396]
[1741578871411,7.8789,126.93,126.92,29.59910396]
[1741578872815,7.8789,126.93,126.92,0.05910396]
[1741578879017,9.02121393,126.94,126.92,0.05910396]
[1741578879221,0.05956505,126.95,126.92,0.05910396]
[1741578879715,0.05956505,126.95,126.93,7.8789]
[1741578879920,0.05956505,126.95,126.92,0.05910396]
[1741578880321,7.93726505,126.95,126.92,7.93820396]
[1741578881723,0.05956505,126.95,126.93,7.8788]
[1741578881920,0.05956505,126.95,126.92,9.08031789]
[1741578882314,0.05956505,126.95,126.94,7.8783]
[1741578882518,0.05956505,126.95,126.94,16.89951393]
[1741578883321,18.88891393,127.0,126.97,7.8764]
[1741578883631,11.01401393,127.0,126.94,11.12241393]
[1741578883820,7.8761,126.98,126.95,7.8775]
[1741578884018,11.01401393,127.0,126.94,11.12241393]
[1741578884224,9.02121393,127.0,126.96,9.02121393]
[1741578884524,0.05602197,126.98,126.96,38.60113452]
[1741578884721,0.05602197,126.98,126.97,7.8761]
[1741578885027,0.05602197,126.98,126.96,38.60113452]
[1741578885325,0.05602197,126.98,126.96,46.47763452]
[1741578886025,0.05602197,126.98,126.97,7.8765]
[1741578889338,0.05602197,126.98,126.96,38.60113452]
[1741578889627,0.05602197,126.98,126.96,46.47793452]
[1741578890328,0.05602197,126.98,126.97,7.8765]
[1741578890532,7.8736,127.02,126.96,38.60113452]
[1741578890828,10.96251393,127.04,126.98,9.02121393]
[1741578891138,10.96251393,127.04,126.99,29.52]
[1741578891736,7.93316031,127.03,127.0,0.05365222]
[1741578892435,0.06006031,127.03,127.0,9.07486615]
[1741578893035,0.06006031,127.03,127.01,7.874]
[1741578893836,0.06006031,127.03,127.0,9.07486615]
[1741578894028,0.06006031,127.03,127.02,16.89461393]
[1741578894234,0.06006031,127.03,127.02,38.52121393]
[1741578895032,0.06006031,127.03,127.02,46.39461393]
[1741578896036,16.89231393,127.06,127.02,46.39461393]
[1741578896238,7.8711,127.06,127.02,46.39461393]
[1741578896535,7.8706,127.07,127.04,9.02121393]
[1741578896734,9.02121393,127.1,127.05,29.5]
[1741578897337,0.05128852,127.09,127.06,0.05175106]
[1741578900537,7.8703,127.07,127.06,0.05175106]
[1741578905135,11.05261393,127.08,127.0,42.49521393]
[1741578905344,9.02121393,127.05,127.0,12.99521393]
[1741578905546,9.02121393,127.03,126.98,9.02121393]
[1741578906344,7.8752,126.99,126.96,40.47121393]
[1741578906540,9.02121393,127.01,126.95,41.449]
[1741578906740,0.05810307,126.99,126.96,0.06027934]
[1741578906947,0.05810307,126.99,126.97,9.02121393]
[1741578909549,7.93340307,126.99,126.96,7.93697934]
[1741578909745,0.05810307,126.99,126.96,0.06027934]
[1741578910047,9.079317,126.99,126.96,0.06027934]
[1741578910248,7.8762,126.98,126.96,0.06027934]
[1741578910546,9.079317,126.99,126.96,0.06027934]
[1741578911249,7.8765,126.97,126.96,0.06027934]
[1741578913746,16.89771393,126.97,126.96,0.06027934]
[1741578914048,7.879,126.93,126.91,9.02121393]
[1741578914450,29.48,126.96,126.91,9.02121393]
[1741578914644,9.02121393,126.95,126.91,9.02121393]
[1741578915040,9.02121393,126.95,126.92,0.05307106]
[1741578915242,0.05955899,126.94,126.92,0.05307106]
[1741578916150,0.05955899,126.94,126.92,7.93247106]
[1741578916345,0.05955899,126.94,126.92,0.05307106]
[1741578916744,7.93825899,126.94,126.92,0.05307106]
[1741578917152,0.05955899,126.94,126.92,0.05307106]
[1741578918253,7.93795899,126.94,126.92,0.05307106]
[1741578920758,0.05955899,126.94,126.92,7.93257106]
[1741578922256,0.05955899,126.94,126.93,7.8789]
[1741578925663,0.05955899,126.94,126.93,16.90011393]
[1741578928065,9.02121393,127.01,126.93,11.11881393]
[1741578928256,9.02121393,127.01,126.96,9.02121393]
[1741578928663,9.02121393,127.01,126.97,7.8761]
[1741578928862,16.89561393,127.01,126.96,9.02121393]
[1741578929064,7.8744,127.01,126.97,0.05667598]
[1741578929263,0.05353406,127.0,126.97,0.05667598]
[1741578929670,0.05353406,127.0,126.98,7.8755]
[1741578930167,7.92843406,127.0,126.97,7.93287598]
[1741578930371,0.05353406,127.0,126.97,0.05667598]
[1741578930772,7.8756,126.99,126.97,0.05667598]
[1741578930961,9.07474799,127.0,126.97,0.05667598]
[1741578931474,16.94954799,127.0,126.97,7.93267598]
[1741578931667,9.07474799,127.0,126.97,0.05667598]
[1741578932976,16.94964799,127.0,126.97,7.93277598]
[1741578933167,9.07474799,127.0,126.97,0.05667598]
[1741578933773,9.07474799,127.0,126.97,7.93307598]
[1741578933969,0.05353406,127.0,126.97,0.05667598]
[1741578935472,7.92843406,127.0,126.98,7.8757]
[1741578935663,7.92843406,127.0,126.97,0.05667598]
[1741578936063,7.92843406,127.0,126.97,7.93287598]
[1741578936977,0.05353406,127.0,126.97,0.05667598]
[1741578938071,7.92853406,127.0,126.97,7.93287598]
[1741578939467,0.05353406,127.0,126.97,0.05667598]
[1741578939672,0.05353406,127.0,126.98,7.8755]
[1741578939971,0.05353406,127.0,126.98,9.02121393]
[1741578940170,289.22,127.06,126.98,38.50121393]
[1741578940376,298.24121393,127.06,127.01,9.02121393]
[1741578940573,16.89241393,127.06,127.03,7.8726]
[1741578941272,10.96801393,127.08,127.04,7.8717]
[1741578941571,0.05211813,127.06,127.05,9.02121393]
[1741578941780,38.50121393,127.1,127.05,9.02121393]
[1741578941978,38.50121393,127.1,127.04,9.08091631]
[1741578941979,0.05476159,127.07,127.04,9.08091631]
[1741578942172,0.05476159,127.07,127.05,7.8715]
[1741578943468,0.05476159,127.07,127.04,38.56091631]
[1741578943667,0.05476159,127.07,127.06,16.89211393]
[1741578943867,9.02121393,127.13,127.06,9.02121393]
[1741578944071,16.88801393,127.13,127.09,7.8686]
[1741578944980,0.05262682,127.12,127.1,16.93961917]
[1741578945370,0.05262682,127.12,127.1,9.07161917]
[1741578948278,7.8678,127.11,127.1,0.05040524]
[1741578951079,16.88901393,127.11,127.1,0.05040524]
[1741578951285,9.02121393,127.11,127.05,31.4923]
[1741578951585,9.02121393,127.09,127.05,31.4923]
[1741578951779,9.02121393,127.09,127.05,29.46]
[1741578952383,0.05369451,127.08,127.06,0.05637976]
[1741578952577,7.8703,127.07,127.06,0.05637976]
[1741578952882,0.05369451,127.08,127.06,0.05637976]
[1741578953182,7.92359451,127.08,127.06,0.05637976]
[1741578953581,0.05369451,127.08,127.06,0.05637976]
[1741578953787,0.05369451,127.08,127.06,7.92717976]
[1741578955481,7.92369451,127.08,127.06,0.05637976]
[1741578958290,7.8703,127.07,127.06,0.05637976]
[1741578958587,0.05369451,127.08,127.06,0.05637976]
[1741578959488,0.05369451,127.08,127.06,7.92717976]
[1741578960192,0.05369451,127.08,127.07,7.8703]
[1741578960392,0.05369451,127.08,127.06,0.05637976]
[1741578961092,0.05369451,127.08,127.06,7.92687976]
[1741578961589,0.05369451,127.08,127.06,0.05637976]
[1741578961786,0.05369451,127.08,127.07,7.8703]
[1741578962188,0.05369451,127.08,127.06,0.05637976]
[1741578962487,0.05369451,127.08,127.06,7.92687976]
[1741578963291,0.05369451,127.08,127.07,7.8703]
[1741578963796,14.04422035,127.15,127.09,7.8685]
[1741578964185,2.093,127.16,127.09,14.04422035]
[1741578964393,7.8656,127.15,127.11,7.8673]
[1741578964699,7.8656,127.15,127.1,29.44]
[1741578964884,0.05322378,127.14,127.11,7.8672]
[1741578965188,0.05322378,127.14,127.12,0.05737941]
[1741578965886,0.05322378,127.14,127.12,7.92447941]
[1741578966081,0.05322378,127.14,127.12,0.05737941]
[1741578967790,0.05322378,127.14,127.12,7.92437941]
[1741578968293,0.05322378,127.14,127.12,0.05737941]
[1741578969498,7.91922378,127.14,127.12,0.05737941]
[1741578969797,0.05322378,127.14,127.12,0.05737941]
[1741578969997,7.8665,127.13,127.12,0.05737941]
[1741578973496,14.04422035,127.13,127.05,14.04422035]
[1741578973691,14.04422035,127.11,127.04,29.44]
[1741578973998,7.8703,127.07,127.04,37.3118]
[1741578974296,7.8703,127.07,127.04,46.30237233]
[1741578974486,31.4266,127.12,127.05,8.99057233]
[1741578974487,8.99057233,127.1,127.05,8.99057233]
[1741578974692,0.05608325,127.07,127.04,38.49040886]
[1741578975105,7.92678325,127.07,127.04,46.30227233]
[1741578975294,7.92678325,127.07,127.04,46.3568775]
[1741578975896,0.05608325,127.07,127.04,38.4851775]
[1741578976198,0.05608325,127.07,127.04,29.49460517]
[1741578976503,0.05608325,127.07,127.05,7.871]
[1741578978799,7.8713,127.06,127.04,0.05460517]
[1741578979004,0.05608325,127.07,127.04,0.05460517]
[1741578981004,7.8715,127.05,127.04,0.05460517]
[1741578982299,7.8712,127.06,127.04,0.05460517]
[1741578982804,0.05608325,127.07,127.04,0.05460517]
[1741578983903,7.8715,127.06,127.04,0.05460517]
[1741578984210,0.05608325,127.07,127.04,0.05460517]
[1741578984506,7.8715,127.05,127.04,0.05460517]
[1741578984709,29.44,127.05,126.99,9.8427]
[1741578985004,7.8731,127.03,126.99,1.9678]
[1741578985411,29.44,127.05,127.0,7.8746]
[1741578986009,0.05159853,127.04,127.01,0.05481938]
[1741578986605,7.8731,127.03,127.01,0.05481938]
[1741578987208,0.05159853,127.04,127.01,0.05481938]
[1741578987209,7.8734,127.02,127.01,0.05481938]
[1741578988405,0.05159853,127.04,126.96,7.8768]
[1741578988615,45.62839027,127.05,126.95,31.4484]
[1741578988616,7.8756,126.99,126.95,31.4484]
[1741578989012,7.8756,126.99,126.95,39.3256]
[1741578989512,0.05441564,126.98,126.96,0.05123343]
[1741578991314,0.05441564,126.98,126.96,7.92823343]
[1741578991707,7.8765,126.97,126.96,0.05123343]
[1741578993223,7.93061564,126.98,126.96,0.05123343]
[1741578993923,7.8765,126.97,126.96,0.05123343]
[1741578994223,0.05441564,126.98,126.96,0.05123343]
[1741578994525,7.93061564,126.98,126.96,0.05123343]
[1741578994719,0.05441564,126.98,126.96,14.0961237]
[1741578995116,0.05441564,126.98,126.96,43.5361237]
[1741578996423,0.05441564,126.98,126.97,7.8765]
[1741578997121,0.05441564,126.98,126.96,29.49123343]
[1741578997321,0.05441564,126.98,126.96,7.92793343]
[1741578997724,0.05441564,126.98,126.96,0.05123343]
[1741578997924,0.05441564,126.98,126.97,7.8765]
[1741578998126,0.05441564,126.98,126.96,0.05123343]
[1741578998826,0.05441564,126.98,126.96,7.92783343]
[1741578999328,0.05441564,126.98,126.96,0.05123343]
[1741579000222,7.93051564,126.98,126.96,0.05123343]
[1741579000924,7.93051564,126.98,126.96,7.92823343]
[1741579002429,7.93051564,126.98,126.96,0.05123343]
[1741579003428,7.93061564,126.98,126.96,0.05123343]
[1741579005028,7.8765,126.97,126.96,0.05123343]
[1741579005830,7.93041564,126.98,126.96,0.05123343]
[1741579006027,7.93041564,126.98,126.96,7.92823343]
[1741579006227,0.05441564,126.98,126.96,7.92823343]
[1741579007330,7.8765,126.97,126.96,0.05123343]
[1741579008230,29.44,126.97,126.91,9.00352393]
[1741579008434,9.00352393,126.94,126.89,18.89572393]
[1741579008733,9.00352393,126.96,126.89,11.01462393]
[1741579008937,9.00352393,126.96,126.91,16.88312393]
[1741579009228,9.00352393,126.96,126.91,9.00352393]
[1741579009426,0.05685826,126.95,126.92,0.05044433]
[1741579009626,0.05685826,126.95,126.93,7.8788]
[1741579009833,0.05685826,126.95,126.92,0.05044433]
[1741579011228,7.8787,126.94,126.92,0.05044433]
[1741579011530,0.05685826,126.95,126.92,0.05044433]
[1741579011736,7.93505826,126.95,126.92,0.05044433]
[1741579012035,0.05685826,126.95,126.92,0.05044433]
[1741579012232,7.8786,126.94,126.92,0.05044433]
[1741579012634,9.00352393,126.94,126.92,0.05044433]
[1741579012937,7.8789,126.93,126.92,0.05044433]
[1741579013530,9.00352393,126.94,126.92,0.05044433]
[1741579013733,16.88222393,126.94,126.92,0.05044433]
[1741579014643,16.88212393,126.94,126.92,0.05044433]
[1741579014835,9.00352393,126.94,126.92,0.05044433]
[1741579015140,16.88192393,126.94,126.92,0.05044433]
[1741579018526,16.88192393,126.94,126.92,7.92994433]
[1741579020438,16.88192393,126.94,126.92,0.05044433]
[1741579022342,2.04215826,126.95,126.93,7.8788]
[1741579022343,0.05685826,126.95,126.93,7.8788]
[1741579022740,0.05685826,126.95,126.92,0.05044433]
[1741579023047,0.05685826,126.95,126.94,7.8783]
[1741579025843,0.05685826,126.95,126.92,0.05044433]
[1741579025844,0.05685826,126.95,126.93,7.8787]
[1741579026043,0.05685826,126.95,126.92,0.05044433]
[1741579026348,0.05685826,126.95,126.93,7.8786]
[1741579027250,38.50038219,126.95,126.92,0.05044433]
[1741579027451,9.00352393,126.93,126.92,0.05044433]
[1741579027847,16.88242393,126.93,126.92,0.05044433]
[1741579028152,0.05685826,126.95,126.92,0.05044433]
[1741579028352,9.06038219,126.95,126.92,0.05044433]
[1741579028946,7.8789,126.93,126.92,0.05044433]
[1741579030247,7.8786,126.94,126.92,0.05044433]
[1741579031643,7.8789,126.93,126.92,0.05044433]
[1741579031841,16.88242393,126.93,126.92,0.05044433]